Cogmind - Beta 10.2 @@@ ROGUE MODE // 2021.09.01 @ 22:28:21 Player: youngster Result: Destroyed by as-38413 with Assembled Heavy Rifle Performance ------------- Evolutions (0) 0 Regions Visited (3) 600 Robots Destroyed (7) 35 Value Destroyed (132) 132 Prototype IDs (23) 460 Alien Tech Used (0) 0 Bonus (189) 189 TOTAL SCORE: 1416 Bonus ------- Aligned with FarCom 300 Friendly Fire -111 Cogmind --------- Core Integrity 0/250 Matter 360/400 Energy 26/125 System Corruption 5% Temperature Cool (0) Movement Core (100) Ox1 Location -10/Exiles Parts ------- > --- POWER (1) -------- Light Ion Engine > --- PROPULSION (2) --- (None) > --- UTILITY (2) ------ Medium Matter Pod > --- WEAPON (2) ------- (None) > --- INVENTORY (4) ---- (None) Peak State ------------ > --- POWER ------------ (None) > --- PROPULSION ------- Light Treads > --- UTILITY ---------- (None) > --- WEAPON ----------- Guided Plasma Cannon > --- INVENTORY -------- Light Ion Engine Wheel Medium Matter Pod Grenade Launcher [Rating: 9] Favorites ----------- Power Light Ion Engine Engine Light Ion Engine Propulsion Light Treads Treads Light Treads Utility Small Storage Unit Storage Small Storage Unit Weapon Medium Laser Energy Gun Medium Laser Energy Cannon Guided Plasma Cannon Ballistic Gun Light Assault Rifle Build | -11 -10 -10 -10 ------- Run | Scr Mat Min Exi Slots Evolved . | . . . . Power . | . . . . Propulsion . | . . . . Utility . | . . . . Weapon . | . . . . Parts Attached 18 | 6 6 1 5 Power 3 | 1 1 . 1 Engine 3 | 1 1 . 1 Core . | . . . . Reactor . | . . . . Propulsion 5 | 2 1 1 1 Treads 4 | 2 1 1 . Leg . | . . . . Wheel 1 | . . . 1 Hover . | . . . . Flight . | . . . . Utility 3 | 1 1 . 1 Device . | . . . . Storage 3 | 1 1 . 1 Processor . | . . . . Hackware . | . . . . Protection . | . . . . Artifact . | . . . . Weapon 7 | 2 3 . 2 Energy Gun 4 | 1 3 . . Energy Cannon 1 | . . . 1 Ballistic Gun 1 | 1 . . . Ballistic Cannon . | . . . . Launcher 1 | . . . 1 Special Weapon . | . . . . Impact Weapon . | . . . . Slashing Weapon . | . . . . Piercing Weapon . | . . . . Special Melee Weapon . | . . . . Unidentified Prototypes 1 | . . . 1 Parts Lost 8 | . 3 1 4 Power . | . . . . Propulsion 2 | . . . 2 Utility . | . . . . Weapon 6 | . 3 1 2 Highest Loss Streak 4 | . 2 1 4 Average Slot Usage (%) 57 | . 86 4 23 Engine 7 | . 14 . . Treads 21 | . 28 4 14 Storage 10 | . 18 . . Energy Gun 10 | . 19 . . Energy Cannon 3 | . . . 9 Ballistic Gun 2 | . 4 . . Naked Turns 18 | . . 17 1 Heaviest Build 21 | 9 21 . 10 Greatest Support 40 | 40 40 3 3 Greatest Overweight (x) 3 | 1 . . 3 Average Overweight (x) . | . . . 1 Largest Inventory Capacity 10 | 6 10 10 4 Average Capacity 5 | 5 7 4 4 Most Carried 8 | 5 8 7 4 Average Carried 4 | 3 5 4 3 Final Capacity 10 | 6 10 4 4 Final Carried 7 | 5 7 4 . Class Distribution -------------------- 100% | Mutant Dominant Class ---------------- Mutant | -10/Materials Mutant | -10/Mines Mutant | -10/Exiles Resources | -11 -10 -10 -10 ----------- Run | Scr Mat Min Exi Matter Collected 420 | 254 166 . . Remotely . | . . . . Salvage Created 345 | 112 233 . . Parts 18 | 6 12 . . Haulers Intercepted 2 | . 2 . . Recyclers Shooed 1 | 1 . . . Parts Field Recycled . | . . . . Retrieved Matter . | . . . . Parts Self-Destructed . | . . . . Prevented . | . . . . Kills | -11 -10 -10 -10 ------- Run | Scr Mat Min Exi Combat Hostiles Destroyed 3 | . 3 . . Melee 1 | . 1 . . Guns 2 | . 2 . . Classes Destroyed 4 | 2 2 . . Tunneler 1 | 1 . . . Hauler 2 | . 2 . . Recycler 1 | 1 . . . Grunt 3 | . 3 . . Best Kill Streak 2 | 1 2 . . Combat Bots Only 1 | . 1 . . Max Kills in Single Turn 1 | 1 1 . . Gunslinging . | . . . . Exploded . | . . . . Melee 1 | . 1 . . Uniques/NPCs Destroyed . | . . . . Combat | -11 -10 -10 -10 -------- Run | Scr Mat Min Exi Damage Taken 1056 | . 509 102 445 Core 262 | . 102 51 109 Absorbed by Shields . | . . . . Core Remaining (%) 100 | 100 . . . Volleys Fired 34 | 6 23 1 4 Largest 2 | 2 2 2 1 Hottest 120 | 60 100 100 120 Shots Fired 56 | 12 38 2 4 Gun 52 | 12 38 2 . Cannon 4 | . . . 4 Launcher . | . . . . Special . | . . . . Kinetic 22 | 6 16 . . Thermal 34 | 6 22 2 4 Explosive . | . . . . Electromagnetic . | . . . . Robot Hit Streak 16 | 6 16 . 1 Robot Miss Streak 2 | 1 1 2 . Penetration Max . | . . . . Secondary Targets . | . . . . Shots Hit Robots 43 | 9 33 . 1 Core Hits 20 | 5 14 . 1 Critical Hits . | . . . . Critical Kills . | . . . . Critical Parts Destroyed . | . . . . Melee Attacks . | . . . . Impact . | . . . . Slashing . | . . . . Piercing . | . . . . Sneak Attacks . | . . . . Combat Hostiles . | . . . . Follow-up Attacks . | . . . . Damage Inflicted 516 | 71 365 12 68 Guns 432 | 69 351 12 . Cannons 68 | . . . 68 Explosions . | . . . . Melee . | . . . . Ramming 16 | 2 14 . . Kinetic 146 | 37 109 . . Thermal 354 | 32 242 12 68 Explosive . | . . . . Electromagnetic . | . . . . Impact . | . . . . Slashing . | . . . . Piercing . | . . . . Highest Corruption 5 | . . . 5 Average Corruption 3 | . . . 3 Corruption Purged . | . . . . Effects 1 | . . . 1 Message Errors 1 | . . . 1 Overload Shots . | . . . . Overflow Damage 36 | . . . 36 Projectiles 36 | . . . 36 Explosions . | . . . . Melee . | . . . . Knockbacks . | . . . . Impact . | . . . . Kinetic . | . . . . Secondary . | . . . . Self-Inflicted Damage . | . . . . Shots . | . . . . Rammed 6 | 3 3 . . Targets Rammed 6 | 3 3 . . Kicked . | . . . . Crushed . | . . . . Highest Temperature 149 | 40 149 39 90 Average Temperature 51 | 22 60 23 45 Received Heat Transfer 252 | . 252 . . Siege Activations . | . . . . Robots Corrupted . | . . . . Combat Hostiles . | . . . . Parts Fried . | . . . . Impact Corruptions . | . . . . Robots Melted . | . . . . Combat Hostiles . | . . . . Parts Melted 1 | . 1 . . Heat Transferred 928 | 75 656 37 160 Parts Sabotaged . | . . . . Parts Stolen . | . . . . Parts Stripped . | . . . . Power Chain Reactions . | . . . . Missiles Intercepted . | . . . . Alert | -11 -10 -10 -10 ------- Run | Scr Mat Min Exi Peak Influence 89 | 10 89 34 . Initial 34 | . 6 34 . Average 33 | 3 45 24 . Maximum Alert Level . | . . . . Low Security (%) 100 | 100 100 100 . Level 1 . | . . . . Level 2 . | . . . . Level 3 . | . . . . Level 4 . | . . . . Level 5 . | . . . . High Security . | . . . . Max Security . | . . . . Squads Dispatched 1 | . 1 . . Investigation . | . . . . Extermination . | . . . . Reinforcement 1 | . 1 . . Assault . | . . . . Garrison . | . . . . Intercept . | . . . . Construction Impeded . | . . . . Haulers Reinforced . | . . . . Stealth | -11 -10 -10 -10 --------- Run | Scr Mat Min Exi Distress Signals 1 | . 1 . . Communications Jammed . | . . . . Distress Signals . | . . . . Times Spotted 19 | . 7 3 9 Peak Tracking Total 12 | . 5 3 12 Tactical Retreats 1 | . . . 1 Traps | -11 -10 -10 -10 ------- Run | Scr Mat Min Exi Traps Triggered . | . . . . Indirectly . | . . . . Trap Hack Attempts . | . . . . Triggered . | . . . . Disarmed . | . . . . Reprogrammed . | . . . . Reused . | . . . . Traps Extracted . | . . . . Installed . | . . . . Triggered . | . . . . Machines | -11 -10 -10 -10 ---------- Run | Scr Mat Min Exi Machines Disabled . | . . . . Max in Single Turn . | . . . . Machines Sabotaged . | . . . . Garrisons Compromised . | . . . . Overloaded Fab Kills . | . . . . Fab Network Shutdowns . | . . . . Hacking | -11 -10 -10 -10 --------- Run | Scr Mat Min Exi Machines Accessed 2 | . 1 . 1 Terminals 1 | . 1 . . Fabricators . | . . . . Repair Stations . | . . . . Recycling Units . | . . . . Scanalyzers . | . . . . Garrison Access . | . . . . Total Hacks 3 | . 2 . 1 Successful 1 | . . . 1 Failed 2 | . 2 . . Catastrophic . | . . . . Database Lockouts . | . . . . Manual 3 | . 2 . 1 Terminals 2 | . 2 . . Fabricators . | . . . . Repair Stations . | . . . . Recycling Units . | . . . . Scanalyzers . | . . . . Garrison Access . | . . . . Terminal Hacks 1 | . . . 1 EX-Prototype ID Bank 1 | . . . 1 Fabricator Hacks . | . . . . Repair Station Hacks . | . . . . Recycling Unit Hacks . | . . . . Scanalyzer . | . . . . Garrison Access Hacks . | . . . . Unauthorized Hacks . | . . . . Terminals . | . . . . Fabricators . | . . . . Repair Stations . | . . . . Recycling Units . | . . . . Scanalyzers . | . . . . Garrison Access . | . . . . Data Cores Recovered . | . . . . Used . | . . . . Hacking Detections 1 | . 1 . . Full Trace Events . | . . . . Feedback Events . | . . . . Feedback Blocked . | . . . . Robot Schematics Acquired . | . . . . Robots Built . | . . . . Matter . | . . . . Time . | . . . . Total Robot Build Rating . | . . . . Part Schematics Acquired . | . . . . Parts Built . | . . . . Matter . | . . . . Time . | . . . . Total Part Build Rating . | . . . . Parts Repaired . | . . . . Time . | . . . . Parts Recycled . | . . . . Recycled Matter . | . . . . Retrieved Matter . | . . . . Retrieved Components . | . . . . Parts Scanalyzed . | . . . . Part Schematics Acquired . | . . . . Parts Damaged . | . . . . Bothacking | -11 -10 -10 -10 ------------ Run | Scr Mat Min Exi Used RIF Installer . | . . . . Robots Hacked . | . . . . Non-combat . | . . . . Combat . | . . . . Robot Hacks Applied . | . . . . Relay Couplers Released . | . . . . Robots Rewired . | . . . . Allies Hacked . | . . . . Hacks Repelled . | . . . . Allies | -11 -10 -10 -10 -------- Run | Scr Mat Min Exi Total Allies . | . . . . Largest Group . | . . . . Highest-Rated Group . | . . . . Highest-Rated Ally . | . . . . Total Orders . | . . . . Ally Attacks . | . . . . Total Damage . | . . . . Kills . | . . . . Allies Corrupted . | . . . . Allies Melted . | . . . . Intel | -11 -10 -10 -10 ------- Run | Scr Mat Min Exi Robot Analysis Total . | . . . . Derelict Logs Recovered 1 | . . 1 . Drone Launches . | . . . . Drone Recoveries . | . . . . Exploration | -11 -10 -10 -10 ------------- Run | Scr Mat Min Exi Turns Passed 703 | 122 320 29 232 Spaces Moved 454 | 58 144 44 208 Core 257 | 5 . 44 208 Treads 197 | 53 144 . . Legs . | . . . . Wheels . | . . . . Hover . | . . . . Flight . | . . . . Fastest Speed 50 | 50 160 50 50 Average Speed 123 | 151 160 50 105 Slowest Speed 200 | 160 160 50 200 Overloaded Moves . | . . . . Propulsion Burnouts . | . . . . Robots Hopped . | . . . . Cave-ins Triggered . | . . . . Exploration Rate (%) 26 | 5 30 14 55 Regions Visited 3 Branch Regions 2 Pre-discovered Areas 1 | . . 1 . Known Exits Taken . | . . . . Unknown Exits Taken 3 | 1 1 1 . Scrap Searched . | . . . . Spaces Dug . | . . . . Terrain Destroyed 1 | . . . 1 Melee . | . . . . Projectile 1 | . . . 1 AOE . | . . . . Terrain Rammed . | . . . . Walls Destroyed . | . . . . Machines Disabled . | . . . . Actions | -11 -10 -10 -10 --------- Run | Scr Mat Min Exi Total 538 | 77 196 48 217 Wait 18 | . 16 2 . Move 451 | 57 143 43 208 Hop . | . . . . Pick Up 9 | 5 3 1 . Fast Attach 10 | 6 3 . 1 Attach 6 | . 1 1 4 Detach . | . . . . Swap 2 | . 2 . . Drop 2 | . 2 . . Fire 34 | 6 23 1 4 Melee . | . . . . Ram . | . . . . Kick . | . . . . Crush 6 | 3 3 . . Escape Stasis . | . . . . Rewire . | . . . . Trap . | . . . . Miscellaneous . | . . . . Route ------- -11/Scrapyard -10/Materials -10/Mines -10/Exiles History --------- Turn | Location | Event 17 | -11/Scrapyard | Discovered new exit (range 13) 123 | -11/Scrapyard | Entered Materials 317 | -10/Materials | Build established: Mutant 421 | -10/Materials | Discovered new exit (range 11) 443 | -10/Materials | Entered Mines 446 | -10/Mines | Released all parts (6) 452 | -10/Mines | Core integrity fell below 50% 462 | -10/Mines | YI-UF0 nonchalantly dropped a Grenade Launcher on the ground 470 | -10/Mines | Deemed a non-threat by the Exiles lab entrance 470 | -10/Mines | Discovered new exit (range 5) 472 | -10/Mines | Entered Exiles 485 | -10/Exiles | Met 8R-AWN 493 | -10/Exiles | Met EX-HEX 509 | -10/Exiles | Met EX-BIN 523 | -10/Exiles | Aligned with FarCom system 524 | -10/Exiles | Given EX-Vault access code 535 | -10/Exiles | Opened EX-Vault 537 | -10/Exiles | Found Prototype Energy Cannon 537 | -10/Exiles | Identified Gui. Plasma Cannon 612 | -10/Exiles | Warned to stay clear of 0b10 Research branches 664 | -10/Exiles | Met EX-DEC 693 | -10/Exiles | Attacked by the Exiles 701 | -10/Exiles | Core integrity fell below 20% 704 | -10/Exiles | Destroyed by as-38413 with Assembled Heavy Rifle Last Messages --------------- EX-BIN: And don't even think about spreading that code around. We're gonna change it right after you leave. Most certainly not to something like 1234 which I did last time as a little joke and some thief managed to sneak in here and steal a few of HEX's prototypes. EX-DEC: Ah I see we have a visitor. One wrong move in here and I'll invert your atomic chain! 00666_ EX-DEC: "Oops, I hope HEX didn't hear that..." 00692_ Destroyed EX Chip 1. 00693_ EXILES: Hostile robot within lab perimeter. Defensive protocols time, folks! 00695_ EX-DEC: "Let's see what this bad boy can do..." 00695_ EX-DEC deploys DAS Turret. 00695_ Knocked back. 00696_ Gui. Plasma Cannon destroyed. 00698_ Grenade Launcher destroyed. 00698_ Knocked back. 00700_ Lgt. Treads destroyed. 00700_ Wheel destroyed. 00703_ EX-BIN: "I just want to science!" 00704_ ZNVBP9KTC6M8&1RN XO0D12J>XSRD Map ----- +----------------------------------------------------+ | ????????????????????????????????????????#" | | ????????????????????????????????????????#" | | ????????????????????????????????????????#" | | ????????????????????????????????????????## | | ?????????????????????????????????????????# | | ?????????????????????????????????????????#" | | ???????????????????????????" ????????????#" | | ?????????????????????????? ???????????#" "" | | ???????????????????????????" ??????????##" ### | | ???????????????????????????# ?????????##"" #?? | | ?????????????????????????### ##??######"" #?? | | ???????????????????""#####X# #"###""""""" ##? | | ?????????????????? """""" " "" ## | | ????????????????? "" """ " # | | ????????????????? " " | | ???????????????? | | ????????????????? | | ?????????????????# | | ??????????????????# | | ???????????????????#" | | ???????????????????#""" c """""" | | ??????????????????##" ######""" | | ??????????????????#"" ""##????#####"" | | ?????????????????##""" """##?????????##" | | ?????????????????#""" """##???????????#" | | ?????????????????#""" @ ""#????????????#" | | ?????????????????#"" ##????????????"" | | ?????????????????#""" #?????????"" | | ?????????????????#"" t "??" | | ?????????????????##"" a ?? | | ??????????????????#"""" a ??? | | ??????????????????## ??? | | ???????????????????#" " ??? "" | | ???????????????????#"""" ""????#?""" | | ???????????????????#"" ""#????????## | | ???????????????????#" """"#??????????? | | ????????????????????""" """#??????????? | | ????????????????????# "?????????????? | | ?????????????????????"" """#????????????? | | ?????????????????????#""" ???????????????? | | ??????????????????????#"""" ???????????????? | | ????????????????????????? ?????????????????? | | ???????????????????????????## ???????????????????? | | ?????????????????????????????????????????????????? | | ?????????????????????????????????????????????????? | | ?????????????????????????????????????????????????? | | ?????????????????????????????????????????????????? | | ?????????????????????????????????????????????????? | | ?????????????????????????????????????????????????? | | ?????????????????????????????????????????????????? | +----------------------------------------------------+ Best States ------------- Heat Dissipation 25 Energy Generation 10 Energy Capacity 250 Matter Stores 300 Matter Capacity 300 Sight Range 16 Terrain Scan Density 10 Evasion (%) 50 Recoil Reduction 2 Item Schematics ----------------- None Robot Schematics ------------------ None Fabricated ------------ Nothing Alien Tech Used ----------------- None Achievements -------------- None Challenges ------------ None Game ------ Seed ChainDecoderVibroblade Manual? 0 Play Time 00:08:01 Cumulative 79.8 hours Start 2021.09.01 @ 22:22:22 End 2021.09.01 @ 22:28:21 Sessions 1 Manual Loads 0 Difficulty Rogue Special Mode None Game No. 56 Rogue 56 Adventurer 0 Explorer 0 Win Type - Total 0 Types 0/0/0/0/0/0/0/0/0 Lore% 54 Gallery% 68 Achievement% 42 Wizard Run 0 Options --------- ASCII 0 Keyboard 1 Movement Vi Keybinds 0 Fullscreen 2 Font 18/Cog Map View 76x50 Tactical HUD 1 Map Filters NONE Filters NONE Steam 0 RUN: 600c969b-2aba-41ff-83c7-11d7e333da4c